[Event "Late-Titled-Tuesday-Blitz-May-07-2024"]
[Site "Chess.com"]
[Date "2024.05.07"]
[Round "7"]
[White "betta2004"]
[Black "finec2"]
[Result "1-0"]
[WhiteElo "2480"]
[BlackElo "2274"]
[TimeControl "180+1"]
[EndTime "15:15:20 PDT"]
[Termination "betta2004 won by resignation"]

1. Nf3 {[%clk 0:02:55.7]} 1... Nf6 {[%clk 0:02:59.2]} 2. e3 {[%clk 0:02:54.5]}
2... g6 {[%clk 0:02:59.3]} 3. b3 {[%clk 0:02:54.3]} 3... Bg7 {[%clk 0:02:59.6]}
4. Bb2 {[%clk 0:02:54.9]} 4... O-O {[%clk 0:03:00.3]} 5. d4 {[%clk 0:02:53.2]}
5... b6 {[%clk 0:03:00.3]} 6. Nbd2 {[%clk 0:02:53.8]} 6... Bb7 {[%clk
0:03:01.1]} 7. Bd3 {[%clk 0:02:54.4]} 7... d6 {[%clk 0:03:01.1]} 8. O-O {[%clk
0:02:54.5]} 8... Nbd7 {[%clk 0:03:01.1]} 9. c4 {[%clk 0:02:54.7]} 9... e6 {[%clk
0:02:59.7]} 10. e4 {[%clk 0:02:55]} 10... c5 {[%clk 0:02:58.6]} 11. d5 {[%clk
0:02:54.6]} 11... exd5 {[%clk 0:02:58.3]} 12. exd5 {[%clk 0:02:54.5]} 12... Ng4
{[%clk 0:02:41.7]} 13. Bxg7 {[%clk 0:02:51.5]} 13... Kxg7 {[%clk 0:02:42.6]} 14.
Be2 {[%clk 0:02:47.2]} 14... h6 {[%clk 0:02:32.8]} 15. h3 {[%clk 0:02:46.9]}
15... Nge5 {[%clk 0:02:32.4]} 16. Nxe5 {[%clk 0:02:46.9]} 16... Nxe5 {[%clk
0:02:33.3]} 17. f4 {[%clk 0:02:47.4]} 17... Nd7 {[%clk 0:02:33]} 18. Qc2 {[%clk
0:02:44.7]} 18... f5 {[%clk 0:02:31.5]} 19. Rae1 {[%clk 0:02:42.1]} 19... Qf6
{[%clk 0:02:29.8]} 20. Bd3 {[%clk 0:02:39.7]} 20... Rfe8 {[%clk 0:02:29.2]} 21.
Nf3 {[%clk 0:02:38.5]} 21... b5 {[%clk 0:02:20.7]} 22. Qd2 {[%clk 0:02:37.7]}
22... Nb6 {[%clk 0:02:16.5]} 23. g4 {[%clk 0:02:26.2]} 23... b4 {[%clk 0:02:05]}
24. g5 {[%clk 0:02:24.3]} 24... hxg5 {[%clk 0:02:04.2]} 25. fxg5 {[%clk
0:02:24.8]} 25... Qf7 {[%clk 0:02:01.6]} 26. Qf4 {[%clk 0:02:21.7]} 26... Qf8
{[%clk 0:01:49]} 27. h4 {[%clk 0:02:18.1]} 27... Rxe1 {[%clk 0:01:20]} 28. Rxe1
{[%clk 0:02:17.7]} 28... Re8 {[%clk 0:01:20]} 29. Rxe8 {[%clk 0:02:11.2]} 29...
Qxe8 {[%clk 0:01:19.8]} 30. h5 {[%clk 0:02:11.7]} 30... Bc8 {[%clk 0:01:04.4]}
31. hxg6 {[%clk 0:02:10.8]} 31... Qxg6 {[%clk 0:01:03.6]} 32. Nh4 {[%clk
0:02:04.2]} 32... Qe8 {[%clk 0:00:39.5]} 33. Kf2 {[%clk 0:01:59.9]} 33... Qe5
{[%clk 0:00:36.5]} 34. Qxe5+ {[%clk 0:01:59.8]} 34... dxe5 {[%clk 0:00:36.3]}
35. Nxf5+ {[%clk 0:01:58.8]} 35... Kf8 {[%clk 0:00:22.8]} 36. Ke3 {[%clk
0:01:55.1]} 36... a5 {[%clk 0:00:16.2]} 37. Ke4 {[%clk 0:01:53.9]} 37... Nd7
{[%clk 0:00:15.9]} 38. Nd6 {[%clk 0:01:53.4]} 38... Ba6 {[%clk 0:00:15.5]} 39.
Kf5 {[%clk 0:01:53.2]} 39... a4 {[%clk 0:00:13.6]} 40. Ke6 {[%clk 0:01:52.5]}
40... Nb8 {[%clk 0:00:12.2]} 41. Kxe5 {[%clk 0:01:52.3]} 1-0

[Event "Late-Titled-Tuesday-Blitz-May-07-2024"]
[Site "Chess.com"]
[Date "2024.05.07"]
[Round "7"]
[White "klimkoj"]
[Black "ChessWarrior7197"]
[Result "0-1"]
[WhiteElo "2953"]
[BlackElo "3143"]
[TimeControl "180+1"]
[EndTime "15:15:24 PDT"]
[Termination "ChessWarrior7197 won by resignation"]

1. e4 {[%clk 0:03:00.9]} 1... d6 {[%clk 0:02:58.3]} 2. d4 {[%clk 0:02:59.2]}
2... Nf6 {[%clk 0:02:58.7]} 3. Nc3 {[%clk 0:02:59.8]} 3... e5 {[%clk 0:02:59.3]}
4. Nf3 {[%clk 0:02:59.8]} 4... Nbd7 {[%clk 0:02:59.4]} 5. Bc4 {[%clk 0:02:58.2]}
5... Be7 {[%clk 0:02:59.6]} 6. O-O {[%clk 0:02:57.5]} 6... O-O {[%clk
0:02:59.8]} 7. Re1 {[%clk 0:02:58.1]} 7... c6 {[%clk 0:03:00.2]} 8. a4 {[%clk
0:02:58]} 8... h6 {[%clk 0:02:57.4]} 9. h3 {[%clk 0:02:57.4]} 9... Re8 {[%clk
0:02:57]} 10. Ba2 {[%clk 0:02:55.5]} 10... a5 {[%clk 0:02:53.9]} 11. Be3 {[%clk
0:02:54.4]} 11... exd4 {[%clk 0:02:46]} 12. Nxd4 {[%clk 0:02:46.7]} 12... Bf8
{[%clk 0:02:45.7]} 13. Nf5 {[%clk 0:02:39.9]} 13... Ne5 {[%clk 0:02:42.2]} 14.
Ng3 {[%clk 0:02:36.7]} 14... Be6 {[%clk 0:02:37.5]} 15. Bxe6 {[%clk 0:02:35.2]}
15... Rxe6 {[%clk 0:02:38.4]} 16. Qe2 {[%clk 0:02:19.7]} 16... Qc7 {[%clk
0:02:35.8]} 17. Rad1 {[%clk 0:02:18.9]} 17... Rae8 {[%clk 0:02:33.2]} 18. Nf5
{[%clk 0:02:08.7]} 18... Ned7 {[%clk 0:02:27.2]} 19. Ng3 {[%clk 0:01:42.6]}
19... d5 {[%clk 0:02:23.3]} 20. exd5 {[%clk 0:01:42.9]} 20... Rxe3 {[%clk
0:02:22.6]} 21. fxe3 {[%clk 0:01:35.3]} 21... Qxg3 {[%clk 0:02:23]} 22. dxc6
{[%clk 0:01:30.1]} 22... bxc6 {[%clk 0:02:21.9]} 23. Qf3 {[%clk 0:01:27.4]}
23... Qc7 {[%clk 0:02:22]} 24. Qf5 {[%clk 0:01:24.6]} 24... Bc5 {[%clk
0:02:18.9]} 25. Kh1 {[%clk 0:01:20.9]} 25... g6 {[%clk 0:02:11.7]} 26. Qf4
{[%clk 0:01:10.7]} 26... Qb6 {[%clk 0:02:11.7]} 27. Rf1 {[%clk 0:01:10.2]} 27...
Re7 {[%clk 0:01:58.8]} 28. e4 {[%clk 0:00:55.5]} 28... Nh5 {[%clk 0:01:56.7]}
29. Qh4 {[%clk 0:00:46.4]} 29... Qc7 {[%clk 0:01:57.2]} 30. Ne2 {[%clk
0:00:45.9]} 30... Qe5 {[%clk 0:01:46.2]} 31. c3 {[%clk 0:00:43]} 31... Bd6
{[%clk 0:01:46.1]} 32. Kg1 {[%clk 0:00:38.5]} 32... Ndf6 {[%clk 0:01:34]} 33. g3
{[%clk 0:00:16.9]} 33... g5 {[%clk 0:01:33.8]} 0-1

[Event "Late-Titled-Tuesday-Blitz-May-07-2024"]
[Site "Chess.com"]
[Date "2024.05.07"]
[Round "7"]
[White "nabukatnezarr"]
[Black "albayo"]
[Result "1-0"]
[WhiteElo "2597"]
[BlackElo "2441"]
[TimeControl "180+1"]
[EndTime "15:15:37 PDT"]
[Termination "nabukatnezarr won by resignation"]

1. b3 {[%clk 0:03:00.9]} 1... e5 {[%clk 0:02:53.2]} 2. Bb2 {[%clk 0:03:01.1]}
2... d6 {[%clk 0:02:53.6]} 3. e3 {[%clk 0:03:00.8]} 3... Nc6 {[%clk 0:02:53.9]}
4. Bb5 {[%clk 0:03:00]} 4... Bd7 {[%clk 0:02:54.3]} 5. Ne2 {[%clk 0:02:58.7]}
5... a6 {[%clk 0:02:54.7]} 6. Bxc6 {[%clk 0:02:58.6]} 6... Bxc6 {[%clk
0:02:55.6]} 7. O-O {[%clk 0:02:59]} 7... Qg5 {[%clk 0:02:55.8]} 8. Ng3 {[%clk
0:02:48.5]} 8... h5 {[%clk 0:02:55.5]} 9. f4 {[%clk 0:02:47.9]} 9... Qg6 {[%clk
0:02:54.4]} 10. Rf2 {[%clk 0:02:07.9]} 10... h4 {[%clk 0:02:52.6]} 11. Nf1
{[%clk 0:02:08.1]} 11... Nf6 {[%clk 0:02:52.4]} 12. h3 {[%clk 0:01:46]} 12...
Ne4 {[%clk 0:02:50.1]} 13. Re2 {[%clk 0:01:46.6]} 13... O-O-O {[%clk 0:02:46.7]}
14. d3 {[%clk 0:01:45.1]} 14... Ng3 {[%clk 0:02:44.7]} 15. Nxg3 {[%clk
0:01:44.1]} 15... Qxg3 {[%clk 0:02:43.8]} 16. f5 {[%clk 0:01:27.1]} 16... Bf3
{[%clk 0:02:42.3]} 17. Qe1 {[%clk 0:01:14.8]} 17... Bxe2 {[%clk 0:02:41.4]} 18.
Qxe2 {[%clk 0:01:15.7]} 18... g6 {[%clk 0:02:38.9]} 19. fxg6 {[%clk 0:01:06.9]}
19... fxg6 {[%clk 0:02:39.8]} 20. Nd2 {[%clk 0:01:06.9]} 20... Bh6 {[%clk
0:02:39.6]} 21. Re1 {[%clk 0:01:07.6]} 21... Rhf8 {[%clk 0:02:39.1]} 22. Ne4
{[%clk 0:01:08.3]} 22... Bxe3+ {[%clk 0:02:10.4]} 23. Qxe3 {[%clk 0:01:09.2]}
23... Qxe3+ {[%clk 0:02:09.7]} 24. Rxe3 {[%clk 0:01:08.9]} 24... Rf5 {[%clk
0:02:06.1]} 25. c4 {[%clk 0:00:52.1]} 25... Rdf8 {[%clk 0:02:04.6]} 26. Re1
{[%clk 0:00:52.6]} 26... Kd7 {[%clk 0:02:01.8]} 27. Ba3 {[%clk 0:00:52.4]} 27...
c5 {[%clk 0:01:56.9]} 28. Bc1 {[%clk 0:00:45.8]} 28... b5 {[%clk 0:01:48.6]} 29.
Be3 {[%clk 0:00:44.1]} 29... bxc4 {[%clk 0:01:47.7]} 30. dxc4 {[%clk 0:00:36]}
30... Kc6 {[%clk 0:01:47.6]} 31. Rd1 {[%clk 0:00:34.6]} 31... Rd8 {[%clk
0:01:47.2]} 32. Nxc5 {[%clk 0:00:27.8]} 32... a5 {[%clk 0:01:39.7]} 33. Ne4
{[%clk 0:00:25.1]} 33... d5 {[%clk 0:01:39.6]} 34. Bg5 {[%clk 0:00:19.6]} 34...
Rd7 {[%clk 0:01:26.9]} 35. Nf6 {[%clk 0:00:19.1]} 35... Rd6 {[%clk 0:01:14.9]}
36. cxd5+ {[%clk 0:00:19.3]} 36... Kc5 {[%clk 0:01:14.7]} 37. Ne4+ {[%clk
0:00:19.8]} 1-0

[Event "Late-Titled-Tuesday-Blitz-May-07-2024"]
[Site "Chess.com"]
[Date "2024.05.07"]
[Round "7"]
[White "ArtemDyachuk"]
[Black "ChessLover0108"]
[Result "0-1"]
[WhiteElo "2702"]
[BlackElo "2955"]
[TimeControl "180+1"]
[EndTime "15:15:43 PDT"]
[Termination "ChessLover0108 won on time"]

1. e4 {[%clk 0:03:00.9]} 1... c5 {[%clk 0:03:00]} 2. Nf3 {[%clk 0:03:00.9]} 2...
d6 {[%clk 0:03:00.5]} 3. d4 {[%clk 0:03:01]} 3... cxd4 {[%clk 0:03:01.4]} 4.
Nxd4 {[%clk 0:03:01.6]} 4... Nf6 {[%clk 0:03:02.1]} 5. Nc3 {[%clk 0:03:02.2]}
5... a6 {[%clk 0:03:02.7]} 6. Be3 {[%clk 0:03:02.5]} 6... e6 {[%clk 0:03:01.5]}
7. f3 {[%clk 0:03:00.2]} 7... b5 {[%clk 0:02:58.9]} 8. Qd2 {[%clk 0:02:59.1]}
8... Bb7 {[%clk 0:02:58.7]} 9. O-O-O {[%clk 0:02:59.6]} 9... Nbd7 {[%clk
0:02:58.5]} 10. Nb3 {[%clk 0:02:58.9]} 10... Be7 {[%clk 0:02:50.8]} 11. g4
{[%clk 0:02:33.8]} 11... Ne5 {[%clk 0:02:40.6]} 12. Qf2 {[%clk 0:02:09.4]} 12...
Nfxg4 {[%clk 0:02:27.4]} 13. fxg4 {[%clk 0:01:50.8]} 13... Nxg4 {[%clk
0:02:28.3]} 14. Qg3 {[%clk 0:01:51.4]} 14... Nxe3 {[%clk 0:02:28.4]} 15. Re1
{[%clk 0:01:52]} 15... Nxf1 {[%clk 0:02:12.4]} 16. Rhxf1 {[%clk 0:01:52.9]}
16... O-O {[%clk 0:02:06]} 17. Rg1 {[%clk 0:01:21.5]} 17... g6 {[%clk
0:02:05.8]} 18. Ref1 {[%clk 0:01:14.8]} 18... Rc8 {[%clk 0:02:05.4]} 19. a3
{[%clk 0:01:08.2]} 19... Bf6 {[%clk 0:02:04.9]} 20. Kb1 {[%clk 0:00:55.3]} 20...
Bxc3 {[%clk 0:01:33.6]} 21. bxc3 {[%clk 0:00:56.2]} 21... Bxe4 {[%clk
0:01:34.2]} 22. Rf4 {[%clk 0:00:45.7]} 22... f5 {[%clk 0:01:29.4]} 23. Rh4
{[%clk 0:00:40.6]} 23... Qf6 {[%clk 0:01:27.3]} 24. Kb2 {[%clk 0:00:28.7]} 24...
Rxc3 {[%clk 0:01:24.6]} 25. Qxc3 {[%clk 0:00:25.9]} 25... Qxh4 {[%clk
0:01:25.2]} 26. Rg3 {[%clk 0:00:13.4]} 26... Qxh2 {[%clk 0:01:24]} 27. Rh3
{[%clk 0:00:11.7]} 27... Qe5 {[%clk 0:01:24.3]} 28. Nd4 {[%clk 0:00:10.9]} 28...
f4 {[%clk 0:01:18.8]} 29. Kc1 {[%clk 0:00:08.1]} 29... g5 {[%clk 0:01:16.9]} 30.
Rh6 {[%clk 0:00:04.3]} 30... Bg6 {[%clk 0:01:15]} 31. Qd2 {[%clk 0:00:02]} 31...
f3 {[%clk 0:01:13.4]} 0-1

[Event "Late-Titled-Tuesday-Blitz-May-07-2024"]
[Site "Chess.com"]
[Date "2024.05.07"]
[Round "7"]
[White "oskariot"]
[Black "TheDevilAdvisoR"]
[Result "1-0"]
[WhiteElo "2763"]
[BlackElo "2517"]
[TimeControl "180+1"]
[EndTime "15:15:49 PDT"]
[Termination "oskariot won by resignation"]

1. e4 {[%clk 0:03:00.9]} 1... Nf6 {[%clk 0:02:57.8]} 2. e5 {[%clk 0:03:00.2]}
2... Nd5 {[%clk 0:02:58.2]} 3. d4 {[%clk 0:03:00.9]} 3... d6 {[%clk 0:02:58.1]}
4. Nf3 {[%clk 0:03:01.8]} 4... dxe5 {[%clk 0:02:55.2]} 5. Nxe5 {[%clk
0:03:02.7]} 5... c6 {[%clk 0:02:55.5]} 6. Be2 {[%clk 0:03:02.6]} 6... Bf5 {[%clk
0:02:55.7]} 7. O-O {[%clk 0:03:02.4]} 7... e6 {[%clk 0:02:55.4]} 8. Re1 {[%clk
0:02:45.5]} 8... Nd7 {[%clk 0:02:50.5]} 9. Nf3 {[%clk 0:02:45.7]} 9... Be7
{[%clk 0:02:46.8]} 10. a3 {[%clk 0:02:45.9]} 10... O-O {[%clk 0:02:42.2]} 11. c4
{[%clk 0:02:46.5]} 11... N5f6 {[%clk 0:02:42.3]} 12. Nc3 {[%clk 0:02:47.1]}
12... Ne4 {[%clk 0:02:37.5]} 13. Nxe4 {[%clk 0:02:43.2]} 13... Bxe4 {[%clk
0:02:38.4]} 14. Bf1 {[%clk 0:02:44.1]} 14... Bg6 {[%clk 0:02:37.7]} 15. g3
{[%clk 0:02:40.4]} 15... Re8 {[%clk 0:02:35.3]} 16. Bg2 {[%clk 0:02:38.4]} 16...
Bf6 {[%clk 0:02:32.2]} 17. Be3 {[%clk 0:02:38.3]} 17... h6 {[%clk 0:02:20.3]}
18. Qb3 {[%clk 0:02:37]} 18... Qb6 {[%clk 0:02:19.8]} 19. Qc3 {[%clk 0:02:30.2]}
19... a5 {[%clk 0:01:54.2]} 20. Ne5 {[%clk 0:02:19.7]} 20... Rad8 {[%clk
0:01:39.8]} 21. Nxg6 {[%clk 0:02:18.7]} 21... fxg6 {[%clk 0:01:39.3]} 22. Rad1
{[%clk 0:02:00.8]} 22... Qc7 {[%clk 0:01:17.5]} 23. Qc2 {[%clk 0:01:59.2]} 23...
Kf7 {[%clk 0:01:10.7]} 24. h4 {[%clk 0:01:56.2]} 24... Rc8 {[%clk 0:00:35.4]}
25. b4 {[%clk 0:01:44]} 25... axb4 {[%clk 0:00:35.1]} 26. axb4 {[%clk
0:01:44.9]} 26... b5 {[%clk 0:00:33.8]} 27. c5 {[%clk 0:01:43.8]} 27... Ra8
{[%clk 0:00:29.2]} 28. Bf4 {[%clk 0:01:43.8]} 28... Qb7 {[%clk 0:00:19.2]} 29.
Bd6 {[%clk 0:01:44]} 29... Ra4 {[%clk 0:00:18.9]} 30. Be4 {[%clk 0:01:29.5]}
30... Nf8 {[%clk 0:00:17.9]} 31. Qb3 {[%clk 0:01:29.8]} 31... Qd7 {[%clk
0:00:16.1]} 32. Qf3 {[%clk 0:01:29.4]} 32... Rea8 {[%clk 0:00:15.2]} 33. Bxc6
{[%clk 0:01:29.3]} 33... Qd8 {[%clk 0:00:12.2]} 34. Bxa8 {[%clk 0:01:29.4]}
34... Rxa8 {[%clk 0:00:12.2]} 35. d5 {[%clk 0:01:29.9]} 35... Qd7 {[%clk
0:00:06.5]} 36. dxe6+ {[%clk 0:01:29.8]} 36... Nxe6 {[%clk 0:00:06.4]} 37. Qxa8
{[%clk 0:01:29.6]} 1-0

[Event "Late-Titled-Tuesday-Blitz-May-07-2024"]
[Site "Chess.com"]
[Date "2024.05.07"]
[Round "7"]
[White "rionelG"]
[Black "VictorFcQNK"]
[Result "1-0"]
[WhiteElo "2289"]
[BlackElo "2096"]
[TimeControl "180+1"]
[EndTime "15:15:59 PDT"]
[Termination "rionelG won on time"]

1. e4 {[%clk 0:03:00.9]} 1... e6 {[%clk 0:02:57.8]} 2. d4 {[%clk 0:02:59.9]}
2... d5 {[%clk 0:02:57.9]} 3. e5 {[%clk 0:03:00.6]} 3... c5 {[%clk 0:02:56.8]}
4. c3 {[%clk 0:02:59.7]} 4... Nc6 {[%clk 0:02:56.3]} 5. Nf3 {[%clk 0:02:57.1]}
5... Qb6 {[%clk 0:02:53]} 6. Bd3 {[%clk 0:02:55.3]} 6... Bd7 {[%clk 0:02:47.7]}
7. dxc5 {[%clk 0:02:55.1]} 7... Bxc5 {[%clk 0:02:46.4]} 8. O-O {[%clk
0:02:55.7]} 8... Nh6 {[%clk 0:02:40.2]} 9. b4 {[%clk 0:02:54.7]} 9... Be7 {[%clk
0:02:31.1]} 10. a4 {[%clk 0:02:43.1]} 10... a6 {[%clk 0:02:13.9]} 11. Qe2 {[%clk
0:02:31.1]} 11... Rc8 {[%clk 0:02:09.5]} 12. Nbd2 {[%clk 0:02:03.1]} 12... Nd8
{[%clk 0:01:38.3]} 13. Bb2 {[%clk 0:01:40.8]} 13... O-O {[%clk 0:01:28.1]} 14.
Nb3 {[%clk 0:01:34.1]} 14... f6 {[%clk 0:00:53.5]} 15. exf6 {[%clk 0:01:32.4]}
15... Bxf6 {[%clk 0:00:52.8]} 16. Nbd4 {[%clk 0:01:31]} 16... e5 {[%clk
0:00:20.3]} 17. Nxe5 {[%clk 0:01:25.4]} 17... Be8 {[%clk 0:00:14.5]} 18. Rad1
{[%clk 0:01:15.5]} 18... Ne6 {[%clk 0:00:12.1]} 19. Nxe6 {[%clk 0:01:12]} 19...
Qxe6 {[%clk 0:00:11.6]} 20. Qc2 {[%clk 0:01:12.6]} 20... Qxe5 {[%clk 0:00:09.4]}
21. Bxh7+ {[%clk 0:01:13.1]} 21... Kh8 {[%clk 0:00:09.6]} 22. Rfe1 {[%clk
0:01:13.3]} 22... Qg5 {[%clk 0:00:07.8]} 23. Re3 {[%clk 0:01:03.1]} 23... Bc6
{[%clk 0:00:05.3]} 24. Rg3 {[%clk 0:01:02.3]} 24... Qe5 {[%clk 0:00:04.6]} 25.
Ba1 {[%clk 0:00:56.1]} 25... Rce8 {[%clk 0:00:04.4]} 26. h3 {[%clk 0:00:54.8]}
26... Bh4 {[%clk 0:00:03.9]} 27. c4 {[%clk 0:00:50.5]} 1-0

[Event "Late-Titled-Tuesday-Blitz-May-07-2024"]
[Site "Chess.com"]
[Date "2024.05.07"]
[Round "7"]
[White "howitzer14"]
[Black "Bala-Afiada"]
[Result "1-0"]
[WhiteElo "3015"]
[BlackElo "2007"]
[TimeControl "180+1"]
[EndTime "15:16:00 PDT"]
[Termination "howitzer14 won by resignation"]

1. d4 {[%clk 0:02:51.1]} 1... d5 {[%clk 0:02:59.4]} 2. Bg5 {[%clk 0:02:49.5]}
2... c5 {[%clk 0:02:58.7]} 3. e3 {[%clk 0:02:47.4]} 3... Nc6 {[%clk 0:02:58.3]}
4. c3 {[%clk 0:02:46.4]} 4... h6 {[%clk 0:02:57.4]} 5. Bh4 {[%clk 0:02:46.2]}
5... Qb6 {[%clk 0:02:56.1]} 6. Qb3 {[%clk 0:02:45.5]} 6... c4 {[%clk 0:02:55.7]}
7. Qc2 {[%clk 0:02:44]} 7... Bf5 {[%clk 0:02:51.3]} 8. Qc1 {[%clk 0:02:44]} 8...
g5 {[%clk 0:02:43]} 9. Bg3 {[%clk 0:02:36.4]} 9... Bg7 {[%clk 0:02:43.1]} 10.
Nd2 {[%clk 0:02:35.4]} 10... Nf6 {[%clk 0:02:37.7]} 11. b3 {[%clk 0:02:30.9]}
11... cxb3 {[%clk 0:02:33.7]} 12. axb3 {[%clk 0:02:31.8]} 12... O-O {[%clk
0:02:32.4]} 13. Ngf3 {[%clk 0:02:06.3]} 13... Qd8 {[%clk 0:02:05.2]} 14. Be2
{[%clk 0:01:54.1]} 14... Rc8 {[%clk 0:02:03.7]} 15. Qb2 {[%clk 0:01:49.1]} 15...
Nh5 {[%clk 0:02:00.4]} 16. O-O {[%clk 0:01:42.6]} 16... Nxg3 {[%clk 0:01:59.2]}
17. hxg3 {[%clk 0:01:43.5]} 17... e5 {[%clk 0:01:54.6]} 18. Rfc1 {[%clk
0:01:41.4]} 18... a6 {[%clk 0:01:45.9]} 19. b4 {[%clk 0:01:37.7]} 19... e4
{[%clk 0:01:45.6]} 20. Ne1 {[%clk 0:01:36.5]} 20... Qd7 {[%clk 0:01:11.3]} 21.
Nb3 {[%clk 0:01:32.6]} 21... Bg4 {[%clk 0:01:10.5]} 22. Nc5 {[%clk 0:01:31.5]}
22... Qf5 {[%clk 0:01:08.3]} 23. Nxb7 {[%clk 0:01:30.3]} 23... Bxe2 {[%clk
0:01:08]} 24. Qxe2 {[%clk 0:01:31.2]} 24... Rc7 {[%clk 0:01:02]} 25. Nc5 {[%clk
0:01:19.1]} 25... Nb8 {[%clk 0:00:34.2]} 26. Nxa6 {[%clk 0:00:50.6]} 26... Nxa6
{[%clk 0:00:32.2]} 27. Qxa6 {[%clk 0:00:51.5]} 27... Rfc8 {[%clk 0:00:28.7]} 28.
b5 {[%clk 0:00:51.8]} 28... Rxc3 {[%clk 0:00:26.7]} 29. Rxc3 {[%clk 0:00:52.7]}
29... Rxc3 {[%clk 0:00:27]} 30. b6 {[%clk 0:00:53.4]} 30... Rc8 {[%clk
0:00:17.2]} 31. b7 {[%clk 0:00:51.3]} 31... Rb8 {[%clk 0:00:17.4]} 32. Qa7
{[%clk 0:00:52]} 1-0

[Event "Late-Titled-Tuesday-Blitz-May-07-2024"]
[Site "Chess.com"]
[Date "2024.05.07"]
[Round "7"]
[White "ChessSwole"]
[Black "wild3000"]
[Result "1-0"]
[WhiteElo "2626"]
[BlackElo "2485"]
[TimeControl "180+1"]
[EndTime "15:16:07 PDT"]
[Termination "ChessSwole won by resignation"]

1. c4 {[%clk 0:03:00.9]} 1... Nf6 {[%clk 0:02:52.4]} 2. g3 {[%clk 0:02:59.3]}
2... g6 {[%clk 0:02:51.8]} 3. Bg2 {[%clk 0:02:57.9]} 3... Bg7 {[%clk 0:02:52.7]}
4. d4 {[%clk 0:02:58.1]} 4... O-O {[%clk 0:02:47.6]} 5. Nf3 {[%clk 0:02:58.4]}
5... c6 {[%clk 0:02:44.3]} 6. O-O {[%clk 0:02:57.9]} 6... d5 {[%clk 0:02:44.3]}
7. cxd5 {[%clk 0:02:58.8]} 7... Nxd5 {[%clk 0:02:43.1]} 8. Nc3 {[%clk
0:02:59.7]} 8... Bg4 {[%clk 0:02:34]} 9. e4 {[%clk 0:02:55.1]} 9... Nb6 {[%clk
0:02:29.8]} 10. Ne2 {[%clk 0:02:46.6]} 10... Bxf3 {[%clk 0:02:22.8]} 11. Bxf3
{[%clk 0:02:46.6]} 11... N8d7 {[%clk 0:02:21.3]} 12. b3 {[%clk 0:02:44.4]} 12...
e5 {[%clk 0:02:18.8]} 13. Bb2 {[%clk 0:02:44.1]} 13... exd4 {[%clk 0:02:17]} 14.
Bxd4 {[%clk 0:02:42.2]} 14... Ne5 {[%clk 0:02:15.3]} 15. Bg2 {[%clk 0:02:41]}
15... Qe7 {[%clk 0:02:05.7]} 16. Qc2 {[%clk 0:02:33.2]} 16... Rad8 {[%clk
0:01:58.3]} 17. Bc5 {[%clk 0:02:32.3]} 17... Qc7 {[%clk 0:01:50.9]} 18. Bxf8
{[%clk 0:02:32.8]} 18... Rxf8 {[%clk 0:01:49.8]} 19. Rad1 {[%clk 0:02:32.6]}
19... Re8 {[%clk 0:01:47.2]} 20. h3 {[%clk 0:02:32.4]} 20... Ned7 {[%clk
0:01:36.6]} 21. Nf4 {[%clk 0:02:29.5]} 21... Qe5 {[%clk 0:01:32.4]} 22. Nd3
{[%clk 0:02:23.6]} 22... Qa5 {[%clk 0:01:30.9]} 23. Qd2 {[%clk 0:02:21.5]} 23...
Qa3 {[%clk 0:01:26.4]} 24. Rfe1 {[%clk 0:02:13.2]} 24... Nf6 {[%clk 0:01:13.9]}
25. Qc2 {[%clk 0:01:56.6]} 25... h5 {[%clk 0:01:09]} 26. h4 {[%clk 0:01:54.2]}
26... Ng4 {[%clk 0:01:07.9]} 27. Bf3 {[%clk 0:01:43.1]} 27... Ne5 {[%clk
0:01:05.4]} 28. Nxe5 {[%clk 0:01:41.4]} 28... Bxe5 {[%clk 0:01:06.3]} 29. Bg2
{[%clk 0:01:35.8]} 29... Bf6 {[%clk 0:00:51.4]} 30. f4 {[%clk 0:01:34.8]} 30...
Be7 {[%clk 0:00:49]} 31. e5 {[%clk 0:01:30.2]} 31... Bc5+ {[%clk 0:00:48.2]} 32.
Kh2 {[%clk 0:01:29.8]} 32... Kg7 {[%clk 0:00:43.1]} 33. f5 {[%clk 0:01:29.5]}
33... Qb4 {[%clk 0:00:27.3]} 34. f6+ {[%clk 0:01:11.6]} 34... Kh7 {[%clk
0:00:25.1]} 35. Re4 {[%clk 0:01:09.1]} 35... Qb5 {[%clk 0:00:23.2]} 36. e6
{[%clk 0:01:03]} 36... fxe6 {[%clk 0:00:20.3]} 37. f7 {[%clk 0:01:03.2]} 37...
Rf8 {[%clk 0:00:17.7]} 38. Rxe6 {[%clk 0:01:03.4]} 1-0

[Event "Late-Titled-Tuesday-Blitz-May-07-2024"]
[Site "Chess.com"]
[Date "2024.05.07"]
[Round "7"]
[White "NajdorfPlayerc5"]
[Black "Pig-filth"]
[Result "0-1"]
[WhiteElo "2418"]
[BlackElo "2326"]
[TimeControl "180+1"]
[EndTime "15:16:11 PDT"]
[Termination "Pig-filth won on time"]

1. e4 {[%clk 0:03:00.9]} 1... Nf6 {[%clk 0:02:59]} 2. e5 {[%clk 0:03:00.5]} 2...
Nd5 {[%clk 0:02:58.6]} 3. d4 {[%clk 0:03:00.9]} 3... d6 {[%clk 0:02:58.9]} 4.
Nf3 {[%clk 0:03:01.5]} 4... g6 {[%clk 0:02:58.1]} 5. Bc4 {[%clk 0:02:56.4]} 5...
Nb6 {[%clk 0:02:57]} 6. Bb3 {[%clk 0:02:55]} 6... Bg7 {[%clk 0:02:57.4]} 7. Qe2
{[%clk 0:02:40.9]} 7... d5 {[%clk 0:02:41.6]} 8. c3 {[%clk 0:02:35.7]} 8... O-O
{[%clk 0:02:35.7]} 9. h4 {[%clk 0:02:35.1]} 9... h5 {[%clk 0:02:25.1]} 10. Bc2
{[%clk 0:02:19.4]} 10... Bg4 {[%clk 0:02:21.2]} 11. Bg5 {[%clk 0:02:16.6]} 11...
f6 {[%clk 0:02:15.8]} 12. exf6 {[%clk 0:02:16.5]} 12... exf6 {[%clk 0:02:15.3]}
13. Be3 {[%clk 0:02:16.4]} 13... f5 {[%clk 0:02:11.3]} 14. Bg5 {[%clk
0:01:57.1]} 14... Qe8 {[%clk 0:02:10.8]} 15. Qxe8 {[%clk 0:01:51]} 15... Rxe8+
{[%clk 0:02:07.5]} 16. Kd1 {[%clk 0:01:51]} 16... N8d7 {[%clk 0:02:04.8]} 17.
Nd2 {[%clk 0:01:50.2]} 17... c5 {[%clk 0:02:02.1]} 18. dxc5 {[%clk 0:01:42.8]}
18... Nxc5 {[%clk 0:02:00.1]} 19. Be3 {[%clk 0:01:11.1]} 19... Rac8 {[%clk
0:01:58]} 20. Bxc5 {[%clk 0:01:07.9]} 20... Rxc5 {[%clk 0:01:55.5]} 21. Bd3
{[%clk 0:01:08.5]} 21... Nc4 {[%clk 0:01:52.6]} 22. Bxc4 {[%clk 0:00:52]} 22...
dxc4 {[%clk 0:01:45.9]} 23. Re1 {[%clk 0:00:51.5]} 23... Rxe1+ {[%clk
0:01:40.4]} 24. Kxe1 {[%clk 0:00:49]} 24... Bxf3 {[%clk 0:01:36.2]} 25. Nxf3
{[%clk 0:00:47]} 25... Rb5 {[%clk 0:01:33.9]} 26. Rb1 {[%clk 0:00:20.2]} 26...
Bxc3+ {[%clk 0:01:32.2]} 27. Kd1 {[%clk 0:00:20.3]} 27... Rxb2 {[%clk 0:01:24]}
28. Rxb2 {[%clk 0:00:18.9]} 28... Bxb2 {[%clk 0:01:24.9]} 29. Kc2 {[%clk
0:00:17.2]} 29... Bf6 {[%clk 0:01:21.8]} 30. Nd2 {[%clk 0:00:16.9]} 30... b5
{[%clk 0:01:17.8]} 31. a4 {[%clk 0:00:15.9]} 31... c3 {[%clk 0:01:15]} 32. Nb1
{[%clk 0:00:09]} 32... b4 {[%clk 0:01:09.5]} 33. Kb3 {[%clk 0:00:04.1]} 33...
Bxh4 {[%clk 0:01:05.5]} 34. Nxc3 {[%clk 0:00:01.3]} 34... bxc3 {[%clk
0:01:04.5]} 35. Kxc3 {[%clk 0:00:02.2]} 35... Bxf2 {[%clk 0:01:04.2]} 0-1